bitfinex/quotes_ETHUSD_20251110
["timestamp","ask_amount","ask_price","bid_price","bid_amount"]
[1762789352366,3.2680441,3556.2,3556.1,0.5936618]
[1762789353168,0.1837,3556.7,3556.1,0.5936618]
[1762789353369,2.8120694,3556.1,3555.9,0.98932556]
[1762789353569,0.01,3557.9,3556.1,0.455504]
[1762789353761,0.01,3557.9,3557.1,0.98932556]
[1762789353963,0.01,3557.9,3557.8,1.48388555]
[1762789354194,2.82064672,3557.9,3557.8,0.59364934]
[1762789354414,3.27664672,3557.9,3557.8,0.59364934]
[1762789355269,0.01,3557.9,3557.8,0.59364934]
[1762789355474,2.82064672,3557.9,3557.8,0.59364934]
[1762789355896,3.27664672,3557.9,3557.8,0.59364934]
[1762789356301,2.81127885,3557.1,3557.0,0.98752733]
[1762789356488,2.81117506,3557.3,3557.0,0.59131491]
[1762789356685,2.81119982,3557.2,3557.1,0.59131491]
[1762789358479,0.456,3557.8,3557.1,0.59131491]
[1762789358480,0.1837,3559.1,3557.1,1.83131491]
[1762789358676,0.1837,3559.1,3558.0,0.98272522]
[1762789358881,0.456,3558.8,3558.1,0.59131491]
[1762789359212,0.456,3558.8,3558.2,0.59131491]
[1762789359377,0.456,3558.8,3557.6,1.38822922]
[1762789359571,1.715712,3558.8,3557.7,0.58957785]
[1762789359882,0.456,3558.8,3557.8,0.58957785]
[1762789360093,0.456,3558.8,3557.9,0.58957785]
[1762789360277,2.81048874,3558.1,3558.0,0.58957785]
[1762789360678,2.81048874,3558.1,3557.1,1.47408783]
[1762789360679,0.456,3558.1,3557.1,1.38822922]
[1762789360980,0.456,3558.1,3557.2,0.58934926]
[1762789361179,2.81077768,3557.8,3557.3,0.58934926]
[1762789361400,2.81077768,3557.8,3557.1,0.405504]
[1762789361401,2.81059032,3558.0,3557.4,0.58934926]
[1762789361568,2.81079046,3557.8,3557.5,0.58934926]
[1762789361907,2.81082684,3557.7,3557.6,0.58934926]
[1762789362125,0.01,3558.9,3556.8,0.98272522]
[1762789362264,0.01,3558.9,3557.7,0.98272522]
[1762789362466,0.01,3558.9,3558.1,0.98272522]
[1762789362701,0.466,3558.9,3558.2,0.58796717]
[1762789362908,0.466,3558.9,3557.6,0.98272522]
[1762789363081,2.80999841,3558.8,3558.0,0.405504]
[1762789363412,0.466,3558.9,3558.1,0.58783909]
[1762789363709,2.81010859,3558.6,3557.8,0.405504]
[1762789363908,2.81012202,3558.6,3557.9,0.58738045]
[1762789364076,3.27585702,3558.9,3558.0,0.58738045]
[1762789364281,0.466,3558.9,3557.4,2.64794122]
[1762789364489,0.466,3558.9,3557.7,2.81080473]
[1762789364700,2.81035188,3558.3,3557.8,0.5870023]
[1762789365014,0.466,3558.9,3557.9,0.5870023]
[1762789365324,2.80993593,3558.8,3557.3,1.259712]
[1762789365526,2.81055367,3558.1,3557.4,0.58676257]
[1762789365817,0.456,3558.7,3557.5,0.58676257]
[1762789366143,1.259712,3559.5,3557.5,0.58676257]
[1762789366144,0.1837,3561.5,3558.3,2.976]
[1762789366296,0.1837,3561.5,3558.4,0.58676257]
[1762789366297,0.466,3560.9,3558.4,0.58676257]
[1762789366476,2.8088329,3560.2,3558.8,1.38822922]
[1762789366677,0.6397,3560.3,3558.9,0.58676257]
[1762789366911,0.6397,3560.3,3559.0,0.58676257]
[1762789366912,2.8093903,3559.5,3559.0,0.58676257]
[1762789367082,2.8093903,3559.5,3559.1,0.58676257]
[1762789367288,0.466,3559.9,3558.6,3.54246304]
[1762789367499,2.80938924,3559.5,3558.7,0.58582399]
[1762789367699,2.80938924,3559.5,3558.8,0.58582399]
[1762789367926,2.80923559,3559.7,3558.6,0.73239254]
[1762789367927,2.80946373,3559.4,3558.9,0.58582399]
[1762789368092,0.466,3559.9,3559.0,0.58582399]
[1762789368291,0.0092,3559.9,3559.1,0.58576909]
[1762789368603,2.80935641,3559.6,3558.9,0.405504]
[1762789368917,0.01,3562.9,3559.7,2.80921631]
[1762789369076,0.6397,3561.6,3559.9,1.13789654]
[1762789369408,2.80821572,3561.0,3560.1,0.405504]
[1762789369717,0.6397,3561.6,3560.1,2.80889369]
[1762789369880,0.1837,3561.6,3559.6,0.405504]
[1762789370187,0.001,3560.3,3559.8,0.405504]
[1762789370377,0.001,3560.3,3560.2,2.80883096]
[1762789370583,0.001,3560.3,3560.2,0.0280883]
[1762789370810,0.001,3560.3,3560.2,0.405504]
[1762789371327,0.001,3560.3,3560.2,0.58573021]
[1762789371527,0.001,3560.3,3560.1,2.80889867]
[1762789371682,0.001,3560.3,3560.2,0.58573021]
[1762789371881,0.001,3560.3,3560.2,3.39456117]
[1762789372111,0.001,3560.3,3560.2,3.80006517]
[1762789373115,0.001,3560.3,3560.2,0.99123421]
[1762789375183,0.001,3560.3,3560.2,1.72362675]
[1762789375898,0.001,3560.3,3560.2,0.99123421]
[1762789376117,0.001,3560.3,3560.2,1.72362675]
[1762789376583,0.001,3560.3,3560.2,0.99123421]
[1762789377027,0.001,3560.3,3560.2,1.72362675]
[1762789377313,0.001,3560.3,3560.2,0.99123421]
[1762789378614,0.001,3560.3,3560.2,1.56965536]
[1762789379014,0.001,3560.3,3560.2,1.56937398]
[1762789379201,0.001,3560.3,3560.2,0.58573021]
[1762789380535,0.001,3560.3,3560.2,1.57009073]
[1762789381013,0.001,3560.3,3560.2,0.58573021]
[1762789381217,0.001,3560.3,3560.2,1.57009073]
[1762789381418,0.001,3560.3,3560.2,5.57857086]
[1762789381722,0.001,3560.3,3560.2,2.46532204]
[1762789382119,0.001,3560.3,3560.2,2.05981804]
[1762789382534,0.001,3560.3,3560.2,0.58573021]
[1762789383042,0.001,3560.3,3560.2,3.80006517]
[1762789383200,0.001,3560.7,3560.2,0.99123421]
[1762789383386,3.27261226,3560.7,3560.6,0.98745165]
[1762789383585,3.27261226,3560.7,3560.6,1.32655096]
[1762789384242,3.27161541,3560.6,3560.5,0.74073497]
[1762789384395,0.1834,3559.9,3558.3,1.96545044]
[1762789384726,0.1834,3559.9,3559.1,0.405504]
[1762789385025,0.1834,3559.9,3559.0,2.8097689]
[1762789385026,0.1834,3559.9,3559.0,2.80977614]
[1762789385216,2.80935577,3559.6,3558.6,1.96545044]
[1762789385412,2.80927514,3559.7,3558.9,2.80984133]
[1762789385585,2.80932459,3559.6,3558.9,2.80984133]
[1762789385990,2.80923901,3559.7,3558.8,2.80993593]
[1762789386226,2.80923901,3559.7,3559.0,3.21527809]
[1762789386397,2.8093731,3559.6,3558.6,3.22516244]
[1762789386607,2.80939115,3559.5,3558.5,1.96545044]
[1762789386804,0.6465,3559.9,3558.7,1.259712]
[1762789387126,2.80944724,3559.5,3558.7,2.80998907]
[1762789387320,0.6465,3559.9,3558.7,0.405504]
[1762789387501,2.80949035,3559.4,3558.6,6.03524379]
[1762789387848,0.1834,3559.9,3558.8,2.80993279]
[1762789387993,0.1834,3559.9,3558.9,2.80978815]
[1762789388188,2.80931629,3559.6,3558.8,1.96545044]
[1762789388429,2.80960688,3559.3,3558.7,1.96545044]
[1762789388740,2.80960688,3559.3,3558.6,3.22716244]
[1762789389132,0.4631,3559.5,3558.6,6.03722828]
[1762789389415,0.4631,3559.5,3558.9,2.80980416]
[1762789389623,2.99253762,3559.9,3558.9,2.80985697]
[1762789389939,2.80932406,3559.6,3558.9,2.80985697]
[1762789390133,2.80922549,3559.7,3559.0,2.80977688]
[1762789390441,0.4631,3559.8,3558.9,1.96545044]
[1762789390622,2.80922549,3559.7,3558.8,2.37095444]
[1762789390796,2.8094511,3559.5,3558.8,2.37095444]
[1762789391139,0.4631,3559.8,3558.8,2.37095444]
[1762789391140,2.80931124,3559.6,3558.8,5.18088359]
[1762789391427,0.4631,3559.8,3558.8,1.96545044]
[1762789391659,3.27231303,3559.8,3558.9,1.96545044]
[1762789391841,2.80924337,3559.7,3559.0,2.80971169]
[1762789392041,2.80951515,3559.4,3558.9,1.96545044]
[1762789392196,2.80930441,3559.6,3558.9,4.77530233]
[1762789392197,2.80932877,3559.6,3558.9,4.77530233]
[1762789392527,2.80941614,3559.5,3558.9,1.96545044]
[1762789392842,2.80938334,3559.5,3558.8,1.96545044]
[1762789393054,3.27240516,3559.6,3558.8,1.96545044]
[1762789393256,2.80939131,3559.5,3558.9,1.96545044]
[1762789393430,2.80931945,3559.6,3559.0,2.80977463]
[1762789393631,2.80943889,3559.5,3558.9,3.2153153]
[1762789393832,2.80946566,3559.4,3558.8,1.96545044]
[1762789394137,2.8095361,3559.4,3558.9,1.96545044]
[1762789394633,0.4631,3559.8,3558.9,1.96545044]
[1762789394845,0.4754,3559.0,3558.9,1.96545044]
[1762789395054,0.4754,3559.0,3558.6,0.002]
[1762789395055,2.81001489,3558.7,3558.6,0.002]
[1762789395263,2.99315254,3559.1,3558.6,0.002]
[1762789395553,0.1834,3559.1,3558.6,0.002]
[1762789395766,2.80977814,3559.0,3558.6,0.002]
[1762789395948,2.80967768,3559.2,3558.6,0.002]
[1762789396148,0.6465,3559.9,3558.7,0.59802245]
[1762789396358,0.4631,3559.8,3558.8,0.59802245]
[1762789396519,2.80936627,3559.6,3558.9,3.40787389]
[1762789396723,2.80945181,3559.5,3559.0,0.59802245]
[1762789397025,3.27234006,3559.7,3559.1,0.59802245]
[1762789397362,2.80944021,3559.5,3559.2,0.59802245]
[1762789397532,2.80944021,3559.5,3559.3,0.59802245]
[1762789397756,2.80944021,3559.5,3559.4,0.59802245]
[1762789397967,0.1834,3559.9,3559.4,0.59802245]
[1762789398282,0.6465,3559.9,3559.5,0.59802245]
[1762789398489,0.6465,3559.9,3559.6,0.59802245]
[1762789398786,2.80922058,3559.8,3559.7,0.59802245]
[1762789398958,3.74772058,3559.8,3559.7,0.59802245]
[1762789399602,2.8097856,3560.3,3559.7,0.59802245]
[1762789399603,0.001,3560.3,3559.7,0.59802245]
[1762789399884,0.001,3560.3,3559.8,0.59802245]
[1762789399885,2.80977175,3560.3,3559.8,0.59802245]
[1762789400073,2.80977175,3560.3,3559.9,0.62611312]
[1762789400247,0.001,3560.3,3560.0,0.59802245]
[1762789400444,0.001,3560.3,3560.1,0.59802245]
[1762789400445,2.80883096,3560.2,3560.1,0.59802245]
[1762789400680,0.4641,3560.3,3560.1,0.59802245]
[1762789400864,0.4641,3560.3,3560.2,0.59802245]
[1762789401067,2.80975207,3560.3,3560.2,0.59802245]
[1762789401248,3.74825207,3560.3,3560.2,0.59802245]
[1762789401452,0.9395,3560.3,3560.2,0.59802245]
[1762789401789,0.001,3560.3,3560.2,0.59802245]
[1762789402147,0.001,3560.3,3560.2,3.40685341]
[1762789402493,0.001,3560.3,3560.2,4.43393999]
[1762789402658,0.01,3560.9,3560.7,2.80841573]
[1762789402859,0.01,3560.9,3560.8,0.59802245]
[1762789403384,0.01,3560.9,3560.8,3.40638012]
[1762789403548,0.01,3560.9,3560.8,0.59802245]
[1762789403972,3.9401788,3560.9,3560.8,0.59802245]
[1762789404384,0.1934,3560.9,3560.8,0.59802245]
[1762789404562,2.8182788,3560.9,3560.8,0.59802245]
[1762789404766,3.9401788,3560.9,3560.8,0.59802245]
[1762789405152,1.1319,3560.9,3560.8,0.59802245]
[1762789405474,0.01,3560.9,3560.8,0.59802245]
[1762789405854,0.01,3560.9,3560.5,1.49524557]
[1762789406053,0.01,3560.9,3560.8,2.80835767]
[1762789406589,0.01,3560.9,3560.8,4.73719081]
[1762789406773,0.01,3560.9,3560.8,3.21386167]
[1762789407453,0.01,3560.9,3560.8,4.47357367]
[1762789407855,0.011,3560.9,3560.8,4.47357367]
[1762789408066,0.011,3560.9,3560.8,6.61177623]
[1762789409021,0.011,3560.9,3560.8,4.47357367]
[1762789409181,0.011,3560.9,3560.8,5.96684991]
[1762789409769,0.011,3560.9,3560.8,3.15849224]
[1762789409969,0.011,3560.9,3560.8,1.665216]
[1762789410170,0.011,3560.9,3560.6,1.49327624]
[1762789410370,0.011,3560.9,3560.3,1.49327624]
[1762789410570,0.011,3560.9,3560.3,1.64260386]
[1762789410785,0.011,3560.9,3560.5,2.80854282]
[1762789410982,0.011,3560.9,3560.6,2.80850689]
[1762789411215,0.011,3560.9,3560.5,3.2140601]
[1762789411582,0.011,3560.9,3560.6,2.80851176]
[1762789411782,0.011,3560.9,3560.5,0.405504]
[1762789412090,0.1952,3560.9,3560.5,0.73628599]
[1762789412293,0.011,3560.9,3560.5,0.73628599]
[1762789412502,0.011,3560.9,3560.8,4.47357367]
[1762789414181,0.011,3560.9,3560.8,5.49515158]
[1762789414385,0.011,3560.9,3560.8,4.47357367]
[1762789414710,0.4787,3562.2,3560.8,4.47357367]
[1762789414711,0.1842,3563.5,3561.0,2.976]
[1762789414911,0.4787,3563.5,3561.9,0.99274575]
[1762789415110,0.4787,3563.5,3562.6,0.405504]
[1762789415408,0.4787,3563.5,3562.5,0.405504]
[1762789415606,0.4787,3563.5,3562.8,2.80678118]
[1762789415905,0.4787,3563.5,3562.5,0.405504]
[1762789416106,3.28495133,3563.5,3562.5,0.26579618]
[1762789416310,0.0092,3562.9,3562.5,0.26579618]
[1762789416620,0.4771,3562.6,3562.1,0.99274575]
[1762789416818,0.4771,3562.5,3562.1,0.405504]
[1762789416975,0.4771,3562.5,3561.9,1.259712]
[1762789416976,0.4787,3562.8,3561.9,1.259712]
[1762789417309,0.1934,3562.9,3562.3,2.80711272]
[1762789417507,0.0092,3562.9,3562.3,0.60199495]
[1762789417873,0.1934,3562.9,3562.3,0.60199495]
[1762789418095,0.1934,3562.9,3561.9,1.259712]
[1762789418295,2.80678118,3562.8,3562.1,1.259712]
[1762789418504,3.00011238,3562.9,3562.2,2.80724878]
[1762789418708,0.1934,3562.9,3562.2,2.80724878]
[1762789418906,0.1934,3562.9,3562.1,2.80732408]
[1762789419107,0.1934,3562.9,3562.1,2.5354836]
[1762789419275,0.1934,3562.9,3562.1,4.0830492]
[1762789419276,3.00012365,3562.9,3562.1,4.0830492]
[1762789419477,3.00012365,3562.9,3562.2,2.80725094]
[1762789419915,0.1934,3562.9,3562.6,2.80689748]
[1762789420114,0.1842,3562.8,3562.2,0.405504]
[1762789420283,0.1842,3562.8,3562.3,2.80717338]
[1762789420902,0.6629,3562.8,3562.2,0.74259773]
[1762789421074,0.6629,3562.8,3562.2,2.80725044]
[1762789421419,0.6629,3562.8,3562.0,4.06709464]
[1762789421581,0.6629,3562.8,3562.2,2.80723933]
[1762789421781,0.6629,3562.8,3561.6,0.99274575]
[1762789421782,0.4787,3562.7,3561.6,0.99274575]
[1762789421977,0.6613,3561.7,3561.3,7.5]
[1762789422179,0.4787,3561.6,3561.3,7.5]
[1762789422388,0.4787,3562.3,3561.3,0.80594834]
[1762789422624,0.1842,3561.8,3561.4,2.80781996]
[1762789422799,0.1842,3561.8,3561.4,2.8078754]
[1762789423029,0.1842,3561.8,3560.8,5.47773543]
[1762789423229,2.9910262,3562.8,3561.0,1.665216]
[1762789423230,0.4787,3562.5,3561.0,1.665216]
[1762789423431,0.4787,3562.5,3561.0,2.22267755]
[1762789423643,2.80762517,3561.8,3561.0,4.62536453]
[1762789423843,2.80764406,3561.8,3561.0,1.71861788]
[1762789424041,0.1842,3561.7,3561.0,1.71861788]
[1762789424242,0.1842,3561.7,3561.1,1.259712]
[1762789424547,0.4787,3561.6,3560.7,2.80843638]
[1762789424841,0.4787,3561.6,3560.6,0.55252521]
[1762789425012,0.4787,3561.6,3560.7,0.9045271]
[1762789425211,3.2864656,3561.6,3560.9,2.80822824]
[1762789425447,0.4787,3561.6,3561.0,2.80819702]
[1762789425616,0.4787,3561.6,3560.8,2.80835295]
[1762789425808,3.28643824,3561.6,3560.9,2.80826581]
[1762789426008,3.28649338,3561.6,3560.9,2.80826581]
[1762789426209,0.4787,3561.6,3560.7,3.71294996]
[1762789426407,2.8079129,3561.4,3560.7,0.9045271]
[1762789426648,2.80797086,3561.3,3560.7,2.1642391]
[1762789426948,2.80791631,3561.4,3560.8,0.002]
[1762789427151,2.80799548,3561.3,3560.8,0.002]
[1762789427443,0.4787,3561.5,3560.8,0.002]
[1762789427644,0.4787,3561.5,3560.9,2.8082013]
[1762789427824,0.4787,3561.5,3560.8,0.19192729]
[1762789428022,0.4787,3561.5,3560.9,2.80826296]
[1762789428556,2.80720583,3562.3,3560.8,0.002]
[1762789428557,0.4787,3562.6,3561.4,0.405504]
[1762789428713,0.4787,3562.6,3561.8,2.80752179]
[1762789428909,3.28564766,3562.6,3561.8,2.80751396]
[1762789429111,3.28569983,3562.6,3561.8,2.80753411]
[1762789429347,0.4787,3562.6,3561.7,0.405504]
[1762789429644,3.2856661,3562.6,3561.9,2.80744947]
[1762789429847,3.2856661,3562.6,3561.8,2.80753954]
[1762789430048,0.4787,3562.5,3561.6,0.99274575]
[1762789430253,0.6613,3561.7,3561.3,0.99274575]
[1762789430454,1.14,3561.7,3561.3,0.99274575]
[1762789430831,1.14,3561.7,3561.2,2.25245775]
[1762789431020,1.14,3561.7,3561.3,2.80793449]
[1762789431221,0.6613,3561.7,3561.3,2.80793449]
[1762789431520,0.6613,3561.7,3561.3,0.99274575]
[1762789432021,0.4787,3561.6,3561.2,0.99274575]
[1762789432222,0.4771,3561.3,3561.0,0.99274575]
[1762789432852,0.9558,3561.3,3561.0,0.99274575]
[1762789433178,2.80804553,3561.2,3560.9,0.99274575]
[1762789433356,0.9558,3561.3,3560.9,0.99274575]
[1762789433663,0.4787,3561.3,3560.9,0.99274575]
[1762789434064,2.80804968,3561.2,3560.9,0.99274575]
[1762789434358,3.26089994,3561.0,3560.9,0.99274575]
[1762789434563,2.8082788,3560.9,3560.8,0.002]
[1762789434763,3.9278788,3560.9,3560.8,0.002]
[1762789435129,1.1196,3560.9,3560.8,0.002]
[1762789436570,1.1335,3560.9,3560.8,0.002]
[1762789436730,3.9417788,3560.9,3560.8,0.002]
[1762789436924,1.1335,3560.9,3560.8,0.002]
[1762789437849,0.1936,3562.0,3561.3,2.80790795]
[1762789438037,2.80749207,3561.9,3561.4,0.41761378]
[1762789438238,3.00103162,3562.0,3561.4,3.22548675]
[1762789438541,0.1936,3562.0,3561.4,3.22548675]
[1762789438866,3.00103484,3562.0,3561.4,3.22548675]
[1762789439262,0.1936,3562.0,3561.4,3.22548675]
[1762789439579,2.80749584,3561.9,3561.3,2.80793896]
[1762789439750,3.00108227,3562.0,3561.2,0.99756318]
[1762789440078,0.1936,3561.9,3561.4,0.99756318]
[1762789440280,0.1928,3561.9,3561.5,2.80778912]
[1762789440480,0.4584,3562.2,3561.5,0.405504]
[1762789440628,0.6426,3562.8,3561.9,2.80749038]
[1762789440988,0.6426,3562.8,3561.8,0.99756318]
[1762789441283,0.6426,3562.8,3561.2,0.99756318]
[1762789441284,0.6788,3561.9,3561.2,0.99756318]
[1762789441486,0.1936,3561.9,3561.3,0.99756318]
[1762789441659,0.4584,3562.7,3561.4,0.99756318]
[1762789441969,2.80754404,3561.9,3561.4,0.99756318]
[1762789442178,2.8071501,3562.4,3561.6,0.99756318]
[1762789442488,0.4584,3562.5,3561.6,0.99756318]
[1762789442637,0.1842,3562.8,3561.7,0.99756318]
[1762789442832,0.4584,3562.4,3561.7,0.99756318]
[1762789443061,2.80731654,3562.2,3561.7,0.99756318]
[1762789443260,3.26553331,3562.4,3561.6,0.99756318]
[1762789443261,0.1936,3561.8,3561.6,0.99756318]
[1762789443764,0.1936,3561.8,3561.5,0.99756318]
[1762789444341,0.1936,3561.8,3561.6,0.99756318]
[1762789445257,0.4584,3562.3,3561.6,0.99756318]
[1762789445570,2.80740992,3562.1,3561.9,0.74846203]
[1762789445775,0.4852,3562.0,3561.9,0.74846203]
[1762789446479,0.4852,3562.0,3561.7,0.99756318]
[1762789446688,3.29266528,3562.0,3561.9,0.75009246]
[1762789446985,0.4852,3562.0,3561.9,0.75009246]
[1762789447356,0.4584,3562.5,3561.9,0.75009246]
[1762789447960,3.26549092,3562.5,3561.9,0.75009246]
[1762789448167,3.29261156,3562.0,3561.9,0.75009246]
[1762789448699,0.9436,3562.0,3561.9,0.75009246]
[1762789448893,2.80735791,3562.1,3561.9,0.75009246]
[1762789449099,0.4584,3562.5,3561.9,0.75009246]
[1762789449246,2.80741156,3562.0,3561.9,0.75009246]
[1762789449687,3.29261156,3562.0,3561.9,0.75009246]
[1762789450196,0.9436,3562.0,3561.9,0.75009246]
[1762789450407,3.26550026,3562.4,3561.8,0.99756318]
[1762789450547,2.99101588,3562.8,3562.0,0.75040629]
[1762789450548,2.80730678,3562.2,3562.0,0.75040629]
[1762789450749,2.80733275,3562.1,3562.0,0.75040629]
[1762789450986,3.29253275,3562.1,3562.0,0.75040629]
[1762789451154,2.80749038,3561.9,3561.8,0.75040629]
[1762789451357,0.6788,3561.9,3561.7,0.75040629]
[1762789451690,2.80725569,3562.2,3561.6,4.29682295]
[1762789451885,2.80725569,3562.2,3562.1,0.750558]
[1762789452489,0.9436,3562.2,3562.1,0.750558]
[1762789452689,3.75085394,3562.2,3562.1,0.750558]
[1762789453046,0.9436,3562.2,3562.1,0.750558]
[1762789453983,3.75085394,3562.2,3562.1,0.750558]
[1762789454488,0.9436,3562.2,3562.1,0.750558]
[1762789454785,0.4852,3562.2,3562.1,0.750558]
[1762789455393,0.4584,3562.7,3562.0,1.000744]
[1762789455549,2.80717513,3562.3,3562.1,0.74992469]
[1762789455754,2.80725394,3562.2,3562.1,0.74992469]
[1762789455974,0.4852,3562.2,3562.1,0.74992469]
[1762789456501,0.9436,3562.2,3562.1,0.74992469]
[1762789457202,3.75085394,3562.2,3562.1,0.74992469]
[1762789457554,0.9436,3562.2,3561.8,0.74992469]
[1762789457755,3.48634465,3561.9,3561.5,0.74992469]
[1762789457995,0.6788,3561.9,3561.6,0.74992469]
[1762789458193,0.1842,3562.8,3561.7,0.02807648]
[1762789458393,0.1936,3561.9,3561.6,1.48911863]
[1762789458661,0.4584,3562.7,3561.7,0.99971049]
[1762789458869,0.4584,3562.6,3562.0,0.74956247]
[1762789459072,0.4584,3562.6,3562.2,0.74956247]
[1762789459394,0.4584,3562.6,3562.3,0.74956247]
[1762789459754,3.26536787,3562.6,3562.3,0.74956247]
[1762789459953,0.4584,3562.6,3562.3,0.74956247]
[1762789460200,0.1842,3562.8,3562.3,0.74956247]
[1762789460358,2.81696324,3562.9,3562.5,0.74956247]
[1762789460560,0.0102,3562.9,3562.6,0.74956247]
[1762789460954,0.4852,3562.7,3562.6,0.74956247]
[1762789461184,2.80693875,3562.6,3562.5,0.74956247]
[1762789461394,2.80701754,3562.5,3562.4,0.74956247]
[1762789461608,2.80709633,3562.4,3562.3,0.74956247]
[1762789461773,2.80709633,3562.4,3562.0,0.74956247]
[1762789461774,0.4852,3562.2,3562.0,0.74956247]
[1762789462158,3.75093275,3562.1,3562.0,0.74956247]
[1762789462384,3.75093275,3562.1,3561.7,0.99971049]
[1762789462385,2.80741156,3562.0,3561.9,0.74956247]
[1762789462579,3.26581156,3562.0,3561.9,0.74956247]
[1762789462797,3.75101156,3562.0,3561.9,0.74956247]
[1762789463602,2.80749038,3561.9,3561.8,0.74956247]
[1762789463804,3.14452686,3561.6,3561.5,0.24956247]
[1762789464101,3.29158453,3561.4,3561.3,0.002]
[1762789464313,3.74918453,3561.4,3561.3,0.002]
[1762789464863,2.80819994,3561.0,3560.9,0.002]
[1762789465087,3.14649994,3561.0,3560.9,0.002]
[1762789465286,3.62369994,3561.0,3560.9,0.002]
[1762789465864,2.8082788,3560.9,3560.8,1e-08]
[1762789466222,5.1898908,3560.9,3560.8,1e-08]
[1762789466429,0.3511,3560.2,3559.1,0.01]
[1762789466707,3.45322013,3559.2,3559.1,0.01]
[1762789467079,3.93042013,3559.2,3559.1,0.01]
[1762789470288,5.19013213,3559.2,3559.1,1e-08]
[1762789471727,2.81040975,3558.2,3558.1,0.01]
[1762789471923,3.26440975,3558.2,3558.1,0.01]
[1762789472076,3.74160975,3558.2,3558.1,0.01]
[1762789472594,2.81040975,3558.2,3558.1,0.01]
[1762789473217,3.74160975,3558.2,3558.1,0.01]
[1762789473438,3.74160975,3558.2,3558.1,1e-08]
[1762789477489,2.81040975,3558.2,3558.1,1e-08]
[1762789477695,3.74160975,3558.2,3558.1,1e-08]
[1762789478597,3.26440975,3558.2,3558.1,1e-08]
[1762789481012,2.81038383,3558.3,3558.1,1e-08]
[1762789481321,0.454,3558.2,3558.1,1e-08]
[1762789481722,3.26440975,3558.2,3558.1,1e-08]
[1762789483018,3.74160975,3558.2,3558.1,1e-08]
[1762789483418,3.26440975,3558.2,3558.1,1e-08]
[1762789483596,0.454,3558.2,3558.1,0.00200001]
[1762789483794,0.4772,3558.6,3558.1,0.00200001]
[1762789484018,2.81140975,3558.2,3558.1,0.00200001]
[1762789484191,3.26540975,3558.2,3558.1,0.00200001]
[1762789485797,2.81140975,3558.2,3558.1,0.00200001]
[1762789486001,3.26540975,3558.2,3558.1,0.00200001]
[1762789488223,3.26460975,3558.2,3558.1,0.00200001]
[1762789498161,4.52432175,3558.2,3558.1,0.00200001]
[1762789500554,4.52432175,3558.2,3557.8,1e-08]
[1762789500555,4.07035872,3557.9,3557.8,1e-08]
[1762789500740,0.4542,3558.2,3557.8,1e-08]
[1762789500940,2.81064672,3557.9,3557.8,1e-08]
[1762789502047,4.07035872,3557.9,3557.8,1e-08]
[1762789502444,4.07035872,3557.9,3557.3,0.002]
[1762789502445,0.0002,3558.2,3557.3,1e-08]
[1762789502645,2.81104177,3557.4,3557.3,1e-08]
[1762789504332,0.0002,3558.2,3557.3,1e-08]
[1762789504533,2.81066101,3558.2,3557.3,1e-08]
[1762789504734,2.81063076,3558.0,3557.3,2.81106502]
[1762789505034,2.8106204,3558.2,3557.3,2.81106502]
[1762789505035,2.81104177,3557.4,3557.3,1e-08]
[1762789505228,2.8108296,3557.7,3557.3,1e-08]
[1762789505533,2.81083139,3557.7,3557.3,1e-08]
[1762789505761,2.8109175,3557.6,3557.3,1e-08]
[1762789505947,2.81083085,3557.7,3557.3,1e-08]
[1762789506155,0.0002,3558.2,3557.3,1e-08]
[1762789506670,2.81099385,3557.5,3557.3,1e-08]
[1762789507164,2.81048874,3558.1,3557.3,1e-08]
[1762789507381,2.81085167,3557.7,3557.3,1e-08]
[1762789507557,2.81088502,3557.6,3557.3,1e-08]
[1762789507755,2.81048874,3558.1,3557.3,1e-08]
[1762789507961,2.81104177,3557.4,3557.3,1e-08]
[1762789508159,0.0002,3558.2,3557.3,1e-08]
[1762789508334,2.8110098,3557.5,3557.3,1e-08]
[1762789508676,2.81104177,3557.4,3557.3,1e-08]
[1762789512436,2.81024177,3557.4,3557.3,1e-08]
[1762789519712,2.81135788,3557.0,3556.9,1e-08]
[1762789519854,4.07106988,3557.0,3556.9,1e-08]
[1762789525800,2.81278127,3555.2,3555.1,0.01]
[1762789526001,1.259712,3556.7,3555.1,0.01]
[1762789526273,2.81268917,3555.4,3555.1,0.37257674]
[1762789526478,2.81268917,3555.4,3555.1,0.01]
[1762789527118,0.75625296,3557.5,3555.1,0.01]
[1762789527441,2.8120832,3556.1,3555.5,3.56412076]
[1762789527576,2.81212365,3556.1,3555.5,2.81251963]
[1762789528235,2.81159636,3556.7,3555.4,0.75163363]
[1762789528443,2.81135788,3557.0,3555.4,3.74037861]
[1762789528623,2.81226976,3555.9,3555.4,0.17613441]
[1762789528823,2.81151596,3556.8,3555.4,0.92776804]
[1762789529028,2.81205211,3556.2,3555.6,2.81239195]
[1762789529228,2.81209595,3556.1,3555.6,0.65808916]
[1762789529533,2.81191312,3556.3,3555.7,2.81234143]
[1762789529723,0.01,3557.9,3555.7,0.75163363]
[1762789530038,2.81172634,3556.6,3555.7,2.84050959]
[1762789530197,2.81155226,3556.8,3555.7,2.84050959]
[1762789530198,2.81167103,3556.7,3556.0,3.56373482]
[1762789530403,2.81167103,3556.7,3556.0,4.34467227]
[1762789530599,2.81155272,3556.8,3556.1,0.75163363]
[1762789530803,2.81145872,3556.9,3556.1,3.56367346]
[1762789531001,2.81145872,3556.9,3556.2,2.81199032]
[1762789531296,2.81099468,3557.5,3556.5,2.81174947]
[1762789531297,1.259712,3557.5,3556.5,2.81174947]
[1762789531497,0.001,3557.7,3556.6,0.02811674]
[1762789531733,0.001,3557.7,3557.0,0.75163363]
[1762789531966,0.001,3557.7,3557.6,2.81088374]
[1762789532129,0.001,3557.7,3557.5,3.56147582]
[1762789532322,0.001,3557.7,3557.5,0.75054123]
[1762789532727,0.001,3557.7,3557.6,2.81088374]
[1762789532924,0.001,3557.7,3557.5,1.20666528]
[1762789533100,0.001,3557.7,3557.6,2.81088374]
[1762789533303,0.001,3557.7,3557.5,3.21643075]
[1762789533918,0.001,3557.7,3557.5,0.405504]
[1762789534114,0.001,3557.7,3557.3,0.405504]
[1762789534315,0.001,3557.7,3556.8,0.75054123]
[1762789534558,0.001,3557.7,3556.9,0.17502517]